fUSD/lending_fUSD_20260614
["ID","MTS","AMOUNT","RATE_DAILY","PERIOD"]
[424987848,1781375433000,-510.0,0.00021024,4]
[424987849,1781375433000,-7600.39577281,0.00021249,2]
[424987846,1781375433000,-153.0,0.00021,2]
[424987841,1781375433000,-200.0,0.00020693,2]
[424987836,1781375433000,-152.0,0.0002,2]
[424987843,1781375433000,-556.0,0.00021,2]
[424987844,1781375433000,-572.0,0.00021,2]
[424987850,1781375433000,-1254.41808677,0.00021249,2]
[424987839,1781375433000,-284.7,0.00020069,2]
[424987837,1781375433000,-153.0,0.0002,2]
[424987838,1781375433000,-608.0,0.0002,2]
[424987842,1781375433000,-156.0,0.00021,2]
[424987916,1781375439000,-1167.06575166,0.00021249,2]
[424987917,1781375439000,-353.89,0.00021249,2]
[424987920,1781375439000,-528.84460847,0.00021249,2]
[424987918,1781375439000,-1348.3235727,0.00021249,2]
[424987921,1781375439000,-1407.35608881,0.00021249,2]
[424987924,1781375439000,-916.55417878,0.00021249,2]
[424987923,1781375439000,-1187.75083997,0.00021249,2]
[424987922,1781375439000,-2004.20318049,0.00021249,2]
[424987919,1781375439000,-5418.83134,0.00021249,2]
[424987945,1781375442000,-171.32710011,0.00021249,2]
[424987944,1781375442000,-150.0,0.00013387,2]
[424987980,1781375443000,-151.0,0.00021348,2]
[424987965,1781375443000,-151.0,0.00021348,2]
[424987968,1781375443000,-151.0,0.00021348,2]
[424987966,1781375443000,-151.0,0.00021348,2]
[424987969,1781375443000,-151.0,0.00021348,2]
[424987972,1781375443000,-151.0,0.00021348,2]
[424987971,1781375443000,-151.0,0.00021348,2]
[424987983,1781375443000,-151.0,0.00021348,2]
[424987977,1781375443000,-151.0,0.00021348,2]
[424987974,1781375443000,-151.0,0.00021348,2]
[424987979,1781375443000,-500.0,0.00021348,2]
[424987978,1781375443000,-151.0,0.00021348,2]
[424987975,1781375443000,-151.0,0.00021348,2]
[424987982,1781375443000,-151.0,0.00021348,2]
[424987967,1781375443000,-500.0,0.00021348,2]
[424987976,1781375443000,-500.0,0.00021348,2]
[424987964,1781375443000,-151.0,0.00021348,2]
[424987957,1781375443000,-151.0,0.00021348,2]
[424987962,1781375443000,-151.0,0.00021348,2]
[424987947,1781375443000,-151.0,0.00021348,2]
[424987946,1781375443000,-7681.10907943,0.00021249,2]
[424987951,1781375443000,-151.0,0.00021348,2]
[424987949,1781375443000,-151.0,0.00021348,2]
[424987948,1781375443000,-151.0,0.00021348,2]
[424987953,1781375443000,-151.0,0.00021348,2]
[424987950,1781375443000,-151.0,0.00021348,2]
[424987963,1781375443000,-500.0,0.00021348,2]
[424987952,1781375443000,-151.0,0.00021348,2]
[424987954,1781375443000,-151.0,0.00021348,2]
[424987981,1781375443000,-500.0,0.00021348,2]
[424987956,1781375443000,-151.0,0.00021348,2]
[424987958,1781375443000,-151.0,0.00021348,2]
[424987960,1781375443000,-500.0,0.00021348,2]
[424987959,1781375443000,-151.0,0.00021348,2]
[424987961,1781375443000,-151.0,0.00021348,2]
[424987955,1781375443000,-151.0,0.00021348,2]
[424987985,1781375443000,-151.0,0.00021348,2]
[424987970,1781375443000,-500.0,0.00021348,2]
[424987984,1781375443000,-500.0,0.00021348,2]
[424988009,1781375443000,-151.0,0.00022284,2]
[424988008,1781375443000,-500.0,0.00022284,2]
[424988010,1781375443000,-152.0,0.00022284,2]
[424988012,1781375443000,-152.0,0.00022284,2]
[424988011,1781375443000,-500.0,0.00022284,2]
[424988015,1781375443000,-152.0,0.00022284,2]
[424988013,1781375443000,-500.0,0.00022284,2]
[424988016,1781375443000,-500.0,0.00022284,2]
[424988017,1781375443000,-152.0,0.00022284,2]
[424988014,1781375443000,-500.0,0.00022284,2]
[424988019,1781375443000,-152.0,0.00022284,2]
[424988018,1781375443000,-532.43578297,0.00022284,2]
[424988021,1781375443000,-349.7,0.00022353,2]
[424988020,1781375443000,-151.0,0.00022339,2]
[424988023,1781375443000,-619.2170977,0.00022407,2]
[424988022,1781375443000,-151.0,0.00022394,2]
[424987986,1781375443000,-500.0,0.00021348,2]
[424988006,1781375443000,-500.0,0.00022284,2]
[424988007,1781375443000,-152.0,0.00022284,2]
[424987973,1781375443000,-500.0,0.00021348,2]
[424988003,1781375443000,-578.20924308,0.00022284,2]
[424988002,1781375443000,-151.0,0.00022284,2]
[424987988,1781375443000,-500.0,0.00021348,2]
[424987989,1781375443000,-162.78,0.00021542,2]
[424987987,1781375443000,-151.0,0.00021348,2]
[424987990,1781375443000,-300.0,0.00021542,7]
[424987991,1781375443000,-5000.0,0.00021918,2]
[424987994,1781375443000,-156.0,0.00022,2]
[424987993,1781375443000,-150.0,0.00021918,2]
[424987995,1781375443000,-556.0,0.00022,2]
[424987992,1781375443000,-150.0,0.00021918,2]
[424987997,1781375443000,-231.0,0.00022,2]
[424987996,1781375443000,-572.0,0.00022,2]
[424987999,1781375443000,-153.0,0.00022,2]
[424987998,1781375443000,-450.0,0.00022,2]
[424988000,1781375443000,-608.0,0.00022,2]
[424988001,1781375443000,-199.63,0.00022094,2]
[424988005,1781375443000,-500.0,0.00022284,2]
[424988004,1781375443000,-500.0,0.00022284,2]
[424988035,1781375444000,-151.0,0.00022834,2]
[424988037,1781375444000,-556.0,0.00023,2]
[424988040,1781375444000,-153.0,0.00023,2]
[424988038,1781375444000,-572.0,0.00023,2]
[424988032,1781375444000,-151.0,0.00022723,2]
[424988034,1781375444000,-151.0,0.00022779,2]
[424988039,1781375444000,-231.0,0.00023,2]
[424988041,1781375444000,-608.0,0.00023,2]
[424988028,1781375444000,-510.0,0.00022537,6]
[424988033,1781375444000,-151.0,0.00022724,2]
[424988030,1781375444000,-151.0,0.00022614,2]
[424988031,1781375444000,-151.0,0.00022669,2]
[424988026,1781375444000,-151.0,0.00022449,2]
[424988027,1781375444000,-151.0,0.00022504,2]
[424988029,1781375444000,-151.0,0.00022559,2]
[424988042,1781375444000,-150.0,0.00023014,2]
[424988024,1781375444000,-619.21709768,0.00022407,2]
[424988025,1781375444000,-619.21709768,0.00022407,2]
[424988036,1781375444000,-162.0,0.00023,2]
[424988043,1781375444000,-150.0,0.00023288,2]
[424988053,1781375444000,-608.0,0.00024,2]
[424988046,1781375444000,-500.0,0.00023777,2]
[424988064,1781375444000,-128.71839404,0.00024609,2]
[424988063,1781375444000,-20276.33607718,0.00024609,2]
[424988060,1781375444000,-105738.28376403,0.000245,2]
[424988062,1781375444000,-199.63,0.00024549,2]
[424988059,1781375444000,-500.0,0.00024499,2]
[424988058,1781375444000,-500.0,0.00024491,2]
[424988044,1781375444000,-500.0,0.00023665,2]
[424988055,1781375444000,-1374.0,0.00024281,10]
[424988057,1781375444000,-1460.17121508,0.00024446,2]
[424988051,1781375444000,-500.0,0.00024,2]
[424988052,1781375444000,-153.0,0.00024,2]
[424988049,1781375444000,-2340.0,0.00024,7]
[424988054,1781375444000,-510.0,0.00024049,7]
[424988048,1781375444000,-572.0,0.00024,2]
[424988045,1781375444000,-500.0,0.00023665,2]
[424988050,1781375444000,-231.0,0.00024,2]
[424988047,1781375444000,-556.0,0.00024,2]
[424988056,1781375444000,-349.7,0.00024324,2]
[424988061,1781375444000,-2500.0,0.00024546,2]
[424988068,1781375446000,-5906.10656906,0.00024609,2]
[424988066,1781375446000,-150.0,0.00024164,2]
[424988065,1781375446000,-1554.20618141,0.00022407,2]
[424988067,1781375446000,-3474.89742682,0.00024609,2]
[424988069,1781375446000,-11737.84298746,0.00024646,2]
[424988070,1781375446000,-364.35770854,0.00024646,2]
[424988072,1781375446000,-2347.35,0.00024646,2]
[424988073,1781375446000,-511.61144025,0.00024609,10]
[424988074,1781375446000,-300.0,0.00024057,2]
[424988071,1781375446000,-825.36286286,0.00024646,2]
[424988083,1781376332000,-150.0,0.000143,2]
[424988087,1781376333000,-114.71763123,0.00014421,2]
[424988086,1781376333000,-157.24267703,0.00014421,2]
[424988085,1781376333000,-151.0,0.00014331,2]
[424988084,1781376333000,-151.0,0.00014308,2]
[424988090,1781376436000,-150.0,0.00014421,2]
[424988092,1781376436000,-151.0,0.00014421,2]
[424988089,1781376436000,-35.28236877,0.00014421,2]
[424988093,1781376436000,-150.0,0.00014421,2]
[424988094,1781376436000,-85.47694015,0.00014421,2]
[424988091,1781376436000,-150.0,0.00014421,2]
[424988097,1781376439000,-108.33606204,0.00014421,2]
[424988096,1781376439000,-150.0,0.00014421,2]
[424988095,1781376439000,-64.52305985,0.00014421,2]
[424988098,1781376482000,-201.88583069,0.00014321,2]
[424988116,1781376632000,-151.0,0.00014321,2]
[424988125,1781376632000,-600.0,0.00014377,2]
[424988123,1781376632000,-2500.0,0.00014371,2]
[424988121,1781376632000,-358.93838698,0.0001437,2]
[424988120,1781376632000,-473.28630735,0.00014346,2]
[424988117,1781376632000,-152.0,0.00014321,2]
[424988122,1781376632000,-500.0,0.0001437,2]
[424988119,1781376632000,-126.71369265,0.00014346,2]
[424988118,1781376632000,-300.0,0.00014345,2]
[424988108,1781376632000,-150.0,0.00014321,2]
[424988115,1781376632000,-90.30105044,0.00014321,2]
[424988114,1781376632000,-60.69894956,0.00014321,2]
[424988112,1781376632000,-150.0,0.00014321,2]
[424988111,1781376632000,-151.0,0.00014321,2]
[424988109,1781376632000,-153.0,0.00014321,2]
[424988113,1781376632000,-152.0,0.00014321,2]
[424988107,1781376632000,-150.0,0.00014321,2]
[424988110,1781376632000,-151.0,0.00014321,2]
[424988126,1781376632000,-2500.0,0.00014401,2]
[424988124,1781376632000,-600.0,0.00014377,2]
[424988130,1781376632000,-189.08150941,0.00014401,2]
[424988127,1781376632000,-2500.0,0.00014401,2]
[424988131,1781376632000,-151.0,0.00014421,2]
[424988128,1781376632000,-1638.82849059,0.00014401,2]
[424988148,1781376632000,-151.0,0.00015219,2]
[424988149,1781376632000,-153.0,0.00015243,2]
[424988147,1781376632000,-151.0,0.00015219,2]
[424988145,1781376632000,-152.0,0.00015213,2]
[424988142,1781376632000,-153.0,0.00014475,2]
[424988138,1781376632000,-152.0,0.00014422,2]
[424988143,1781376632000,-230.93,0.000145,2]
[424988144,1781376632000,-151.0,0.00014642,2]
[424988140,1781376632000,-151.0,0.00014434,2]
[424988141,1781376632000,-200.0,0.00014459,2]
[424988139,1781376632000,-151.0,0.00014424,2]
[424988146,1781376632000,-152.0,0.00015214,2]
[424988129,1781376632000,-672.09,0.00014401,2]
[424988136,1781376632000,-150.0,0.00014421,2]
[424988132,1781376632000,-152.0,0.00014421,2]
[424988150,1781376632000,-151.0,0.00015312,2]
[424988135,1781376632000,-153.0,0.00014421,2]
[424988133,1781376632000,-141.66393796,0.00014421,2]
[424988137,1781376632000,-306.23830523,0.00014421,2]
[424988134,1781376632000,-151.0,0.00014421,2]
[424988160,1781376633000,-151.0,0.00015313,2]
[424988171,1781376633000,-150.0,0.00016105,2]
[424988169,1781376633000,-600.0,0.00015753,2]
[424988168,1781376633000,-300.0,0.00015753,2]
[424988166,1781376633000,-2500.0,0.00015753,2]
[424988165,1781376633000,-418.98260664,0.00015335,2]
[424988162,1781376633000,-151.0,0.00015313,2]
[424988167,1781376633000,-600.0,0.00015753,2]
[424988161,1781376633000,-151.0,0.00015313,2]
[424988170,1781376633000,-250.0,0.00015863,2]
[424988152,1781376633000,-151.0,0.00015312,2]
[424988163,1781376633000,-151.0,0.00015313,2]
[424988159,1781376633000,-150.0,0.00015313,2]
[424988158,1781376633000,-151.0,0.00015313,2]
[424988157,1781376633000,-151.0,0.00015313,2]
[424988155,1781376633000,-151.0,0.00015313,2]
[424988154,1781376633000,-151.0,0.00015313,2]
[424988156,1781376633000,-150.0,0.00015313,2]
[424988153,1781376633000,-152.0,0.00015313,2]
[424988151,1781376633000,-150.0,0.00015312,2]
[424988172,1781376633000,-150.0,0.00016105,2]
[424988164,1781376633000,-236.35735635,0.00015313,2]
[424988173,1781376633000,-151.0,0.00016105,2]
[424988187,1781376633000,-151.0,0.00016222,2]
[424988175,1781376633000,-151.0,0.00016109,2]
[424988174,1781376633000,-151.0,0.00016106,2]
[424988196,1781376633000,-393.51233074,0.00016488,2]
[424988191,1781376633000,-362.2,0.00016438,2]
[424988193,1781376633000,-19836.24295214,0.00016488,2]
[424988192,1781376633000,-6917.38488307,0.00016487,2]
[424988194,1781376633000,-652.94776118,0.00016488,2]
[424988195,1781376633000,-416.45915203,0.00016488,2]
[424988190,1781376633000,-152.0,0.00016272,2]
[424988189,1781376633000,-150.0,0.00016272,2]
[424988188,1781376633000,-152.0,0.00016222,2]
[424988197,1781376633000,-275.55772567,0.00016488,2]
[424988183,1781376633000,-153.0,0.00016122,2]
[424988179,1781376633000,-151.0,0.00016122,2]
[424988186,1781376633000,-151.0,0.0001621,2]
[424988185,1781376633000,-151.0,0.00016122,2]
[424988181,1781376633000,-151.0,0.00016122,2]
[424988184,1781376633000,-151.0,0.00016122,2]
[424988180,1781376633000,-151.0,0.00016122,2]
[424988177,1781376633000,-150.0,0.00016122,2]
[424988178,1781376633000,-150.0,0.00016122,2]
[424988176,1781376633000,-2061.89,0.00016116,2]
[424988182,1781376633000,-153.0,0.00016122,2]
[424988198,1781376638000,-150.0,0.00014321,2]
[424988200,1781376638000,-4786.75958448,0.00016488,2]
[424988201,1781376638000,-304.0,0.00016488,2]
[424988199,1781376638000,-15753.22009518,0.00016488,2]
[424988230,1781376640000,-396.12,0.00016488,2]
[424988268,1781376644000,-166.12,0.00018655,2]
[424988258,1781376644000,-166.66,0.00017884,2]
[424988264,1781376644000,-3201.28,0.00018419,2]
[424988283,1781376644000,-4639.73497416,0.0001994,2]
[424988266,1781376644000,-151.38,0.00018602,2]
[424988265,1781376644000,-1672.7364795,0.00018423,2]
[424988269,1781376644000,-199.63,0.0001873,2]
[424988274,1781376644000,-211.31337438,0.00019421,2]
[424988267,1781376644000,-166.66,0.00018637,2]
[424988273,1781376644000,-166.66,0.0001939,2]
[424988272,1781376644000,-166.66,0.00019014,2]
[424988270,1781376644000,-373.16,0.00018775,2]
[424988275,1781376644000,-6917.38488298,0.00019498,2]
[424988256,1781376644000,-5575.72,0.00017741,2]
[424988271,1781376644000,-1734.62772924,0.00018971,2]
[424988260,1781376644000,-510.0,0.00018,2]
[424988245,1781376644000,-1000.0,0.00016587,2]
[424988259,1781376644000,-6917.38488298,0.00017993,2]
[424988243,1781376644000,-151.0,0.0001592,2]
[424988244,1781376644000,-329239.73099858,0.00016488,2]
[424988246,1781376644000,-31742.31,0.00016588,2]
[424988248,1781376644000,-312.0,0.00016629,2]
[424988247,1781376644000,-318.0,0.00016629,2]
[424988249,1781376644000,-419.36,0.00016641,2]
[424988261,1781376644000,-500.0,0.00018184,3]
[424988252,1781376644000,-150.0,0.00017219,2]
[424988251,1781376644000,-200.0,0.00016907,2]
[424988253,1781376644000,-1555.5,0.00017327,2]
[424988254,1781376644000,-431.1,0.00017374,2]
[424988255,1781376644000,-905.52447339,0.00017488,2]
[424988262,1781376644000,-166.66,0.00018261,2]
[424988257,1781376644000,-1613.0535,0.00017875,2]
[424988250,1781376644000,-1500.0,0.00016779,2]
[424988280,1781376644000,-300.0,0.00019853,7]
[424988263,1781376644000,-362.2,0.0001841,2]
[424988276,1781376644000,-1798.80895522,0.00019519,2]
[424988300,1781376644000,-413.0,0.00020386,2]
[424988298,1781376644000,-407.0,0.00020269,2]
[424988303,1781376644000,-166.69,0.00020754,2]
[424988299,1781376644000,-362.2,0.00020381,2]
[424988304,1781376644000,-509.0,0.00021,2]
[424988301,1781376644000,-1934.38338736,0.00020615,2]
[424988302,1781376644000,-412.0,0.00020682,2]
[424988306,1781376644000,-279.0,0.00021,2]
[424988310,1781376644000,-260.0,0.00021,2]
[424988309,1781376644000,-596.0,0.00021,2]
[424988305,1781376644000,-628.0,0.00021,2]
[424988308,1781376644000,-192.0,0.00021,2]
[424988312,1781376644000,-2487.90089566,0.00021026,2]
[424988281,1781376644000,-2487.90089574,0.000199,2]
[424988311,1781376644000,-6917.38488298,0.00021004,2]
[424988295,1781376644000,-1865.36488656,0.00020067,2]
[424988307,1781376644000,-152.0,0.00021,2]
[424988296,1781376644000,-5529.0,0.000201,5]
[424988297,1781376644000,-923.18501285,0.0002017,2]
[424988279,1781376644000,-151.0,0.00019853,2]
[424988277,1781376644000,-510.0,0.0001959,3]
[424988278,1781376644000,-166.66,0.00019767,2]
[424988284,1781376644000,-509.0,0.0002,2]
[424988287,1781376644000,-163.0,0.0002,2]
[424988290,1781376644000,-192.0,0.0002,2]
[424988282,1781376644000,-313.0,0.00019935,2]
[424988292,1781376644000,-596.0,0.0002,2]
[424988288,1781376644000,-279.0,0.0002,2]
[424988291,1781376644000,-41493.56,0.0002,2]
[424988286,1781376644000,-158.0,0.0002,2]
[424988289,1781376644000,-151.0,0.0002,2]
[424988285,1781376644000,-628.0,0.0002,2]
[424988293,1781376644000,-260.0,0.0002,2]
[424988294,1781376644000,-402.0,0.00020042,2]
[424988348,1781376645000,-500.0,0.00021711,2]
[424988347,1781376645000,-151.0,0.00021711,2]
[424988345,1781376645000,-500.0,0.00021711,2]
[424988344,1781376645000,-151.0,0.00021711,2]
[424988343,1781376645000,-151.0,0.00021711,2]
[424988341,1781376645000,-151.0,0.00021711,2]
[424988346,1781376645000,-151.0,0.00021711,2]
[424988351,1781376645000,-500.0,0.00021711,2]
[424988340,1781376645000,-151.0,0.00021711,2]
[424988342,1781376645000,-500.0,0.00021711,2]
[424988354,1781376645000,-500.0,0.00021711,2]
[424988359,1781376645000,-151.0,0.00021711,2]
[424988350,1781376645000,-151.0,0.00021711,2]
[424988349,1781376645000,-151.0,0.00021711,2]
[424988356,1781376645000,-151.0,0.00021711,2]
[424988355,1781376645000,-151.0,0.00021711,2]
[424988357,1781376645000,-500.0,0.00021711,2]
[424988367,1781376645000,-192.0,0.00022,2]
[424988358,1781376645000,-151.0,0.00021711,2]
[424988361,1781376645000,-151.0,0.00021711,2]
[424988362,1781376645000,-5000.0,0.00021918,2]
[424988339,1781376645000,-500.0,0.00021711,2]
[424988352,1781376645000,-151.0,0.00021711,2]
[424988337,1781376645000,-151.0,0.00021711,2]
[424988320,1781376645000,-151.0,0.00021711,2]
[424988334,1781376645000,-151.0,0.00021711,2]
[424988313,1781376645000,-373.16,0.00021122,2]
[424988314,1781376645000,-2005.9555727,0.00021163,2]
[424988316,1781376645000,-209.50129075,0.000216,2]
[424988315,1781376645000,-510.0,0.00021179,4]
[424988319,1781376645000,-151.0,0.00021711,2]
[424988325,1781376645000,-151.0,0.00021711,2]
[424988324,1781376645000,-151.0,0.00021711,2]
[424988363,1781376645000,-150.0,0.00021918,2]
[424988317,1781376645000,-1790.49870925,0.000216,2]
[424988321,1781376645000,-151.0,0.00021711,2]
[424988318,1781376645000,-200.0,0.00021711,2]
[424988323,1781376645000,-151.0,0.00021711,2]
[424988322,1781376645000,-151.0,0.00021711,2]
[424988326,1781376645000,-151.0,0.00021711,2]
[424988328,1781376645000,-151.0,0.00021711,2]
[424988330,1781376645000,-500.0,0.00021711,2]
[424988327,1781376645000,-500.0,0.00021711,2]
[424988333,1781376645000,-500.0,0.00021711,2]
[424988331,1781376645000,-151.0,0.00021711,2]
[424988335,1781376645000,-151.0,0.00021711,2]
[424988332,1781376645000,-2080.17592889,0.00021711,2]
[424988329,1781376645000,-151.0,0.00021711,2]
[424988336,1781376645000,-500.0,0.00021711,2]
[424988338,1781376645000,-151.0,0.00021711,2]
[424988364,1781376645000,-509.0,0.00022,2]
[424988353,1781376645000,-151.0,0.00021711,2]
[424988365,1781376645000,-628.0,0.00022,2]
[424988394,1781376645000,-2500.0,0.00023581,2]
[424988396,1781376645000,-1107.99917099,0.00023681,5]
[424988398,1781376645000,-1057.38381163,0.00023681,5]
[424988395,1781376645000,-75574.2803593,0.00023649,2]
[424988397,1781376645000,-1091.90959457,0.00023681,5]
[424988402,1781376645000,-1094.58760547,0.00023681,5]
[424988401,1781376645000,-1006.31248071,0.00023681,5]
[424988399,1781376645000,-1034.72609947,0.00023681,5]
[424988400,1781376645000,-1147.47200042,0.00023681,5]
[424988408,1781376645000,-1009.75786751,0.00023681,5]
[424988406,1781376645000,-1017.93531697,0.00023681,5]
[424988409,1781376645000,-1061.47711832,0.00023681,5]
[424988405,1781376645000,-1038.10364434,0.00023681,5]
[424988407,1781376645000,-1040.42843045,0.00023681,5]
[424988404,1781376645000,-1111.1070268,0.00023681,5]
[424988411,1781376645000,-1062.74591866,0.00023681,5]
[424988412,1781376645000,-1111.70674383,0.00023681,5]
[424988414,1781376645000,-1092.55828986,0.00023681,5]
[424988410,1781376645000,-1039.48636924,0.00023681,5]
[424988413,1781376645000,-1044.35130414,0.00023681,5]
[424988415,1781376645000,-1055.81647719,0.00023681,5]
[424988416,1781376645000,-1034.04825746,0.00023681,5]
[424988360,1781376645000,-151.0,0.00021711,2]
[424988393,1781376645000,-373.16,0.00023469,2]
[424988391,1781376645000,-285.61462453,0.00023223,2]
[424988403,1781376645000,-1128.26123728,0.00023681,5]
[424988392,1781376645000,-2487.90089566,0.00023277,2]
[424988390,1781376645000,-150.0,0.00023014,2]
[424988368,1781376645000,-596.0,0.00022,2]
[424988371,1781376645000,-2157.14243826,0.00022259,2]
[424988370,1781376645000,-2487.90089566,0.00022151,2]
[424988372,1781376645000,-362.2,0.00022353,2]
[424988375,1781376645000,-650.82,0.00022457,2]
[424988374,1781376645000,-1610.10307038,0.00022407,2]
[424988369,1781376645000,-260.0,0.00022,2]
[424988376,1781376645000,-6917.38488298,0.00022509,2]
[424988373,1781376645000,-1610.1030704,0.00022407,2]
[424988378,1781376645000,-379.1502,0.00022577,7]
[424988377,1781376645000,-280.22249842,0.00022577,7]
[424988366,1781376645000,-279.0,0.00022,2]
[424988389,1781376645000,-150.0,0.00023014,2]
[424988380,1781376645000,-152.0,0.00022798,2]
[424988383,1781376645000,-509.0,0.00023,2]
[424988381,1781376645000,-152.0,0.00022798,2]
[424988379,1781376645000,-510.0,0.00022769,6]
[424988384,1781376645000,-628.0,0.00023,2]
[424988386,1781376645000,-192.0,0.00023,2]
[424988382,1781376645000,-699.92038075,0.00022807,2]
[424988385,1781376645000,-279.0,0.00023,2]
[424988388,1781376645000,-260.0,0.00023,2]
[424988387,1781376645000,-596.0,0.00023,2]
[424988461,1781376646000,-383.0,0.00024397,2]
[424988452,1781376646000,-150.0,0.00024164,2]
[424988449,1781376646000,-260.0,0.00024,2]
[424988447,1781376646000,-192.0,0.00024,2]
[424988445,1781376646000,-628.0,0.00024,2]
[424988448,1781376646000,-596.0,0.00024,2]
[424988451,1781376646000,-175.517476,0.00024061,14]
[424988446,1781376646000,-279.0,0.00024,2]
[424988453,1781376646000,-906.0,0.00024188,2]
[424988444,1781376646000,-509.0,0.00024,2]
[424988450,1781376646000,-6917.38488298,0.00024015,2]
[424988458,1781376646000,-1359.0,0.00024397,2]
[424988459,1781376646000,-3557.0,0.00024397,2]
[424988457,1781376646000,-150.0,0.00024384,2]
[424988455,1781376646000,-362.2,0.00024324,2]
[424988456,1781376646000,-510.0,0.00024359,7]
[424988454,1781376646000,-1355.0,0.00024281,10]
[424988462,1781376646000,-150.0,0.00024397,2]
[424988464,1781376646000,-426.241,0.00024397,2]
[424988463,1781376646000,-3644.0,0.00024397,2]
[424988465,1781376646000,-2487.90089566,0.00024402,2]
[424988467,1781376646000,-6719.4956711,0.0002443,2]
[424988466,1781376646000,-500.0,0.00024429,2]
[424988470,1781376646000,-500.0,0.00024499,2]
[424988460,1781376646000,-1240.02,0.00024397,2]
[424988442,1781376646000,-152.0,0.00023868,2]
[424988420,1781376646000,-1047.50433956,0.00023681,5]
[424988440,1781376646000,-152.0,0.00023868,2]
[424988473,1781376646000,-175.48841973,0.00024499,2]
[424988418,1781376646000,-1035.3522022,0.00023681,5]
[424988419,1781376646000,-1090.91856669,0.00023681,5]
[424988417,1781376646000,-1113.25673084,0.00023681,5]
[424988425,1781376646000,-1040.26255865,0.00023681,5]
[424988421,1781376646000,-1135.17583109,0.00023681,5]
[424988426,1781376646000,-1062.97453969,0.00023681,5]
[424988428,1781376646000,-1029.20984271,0.00023681,5]
[424988423,1781376646000,-1002.64035869,0.00023681,5]
[424988427,1781376646000,-1085.68507485,0.00023681,5]
[424988424,1781376646000,-1052.33019676,0.00023681,5]
[424988443,1781376646000,-151.0,0.00023868,2]
[424988430,1781376646000,-1077.05158447,0.00023681,5]
[424988422,1781376646000,-1011.88738784,0.00023681,5]
[424988431,1781376646000,-1351.11821394,0.00023681,5]
[424988433,1781376646000,-297.49462527,0.00023783,2]
[424988434,1781376646000,-500.0,0.00023799,2]
[424988432,1781376646000,-411.0,0.00023681,2]
[424988435,1781376646000,-500.0,0.00023799,2]
[424988437,1781376646000,-500.0,0.00023799,2]
[424988436,1781376646000,-500.0,0.00023799,2]
[424988438,1781376646000,-500.0,0.00023799,2]
[424988441,1781376646000,-152.0,0.00023868,2]
[424988439,1781376646000,-800.0,0.00023818,2]
[424988429,1781376646000,-1016.28268621,0.00023681,5]
[424988469,1781376646000,-500.0,0.00024499,2]
[424988513,1781376646000,-1030.0,0.00025259,2]
[424988471,1781376646000,-500.0,0.00024499,2]
[424988500,1781376646000,-604.0,0.00025,2]
[424988507,1781376646000,-800.0,0.00025188,2]
[424988503,1781376646000,-157.56,0.00025,2]
[424988522,1781376646000,-1328.27659266,0.00025259,2]
[424988505,1781376646000,-151.0,0.00025032,2]
[424988501,1781376646000,-267.0,0.00025,2]
[424988504,1781376646000,-151.0,0.00025032,2]